fUSD/lending_fUSD_20240718
["ID","MTS","AMOUNT","RATE_DAILY","PERIOD"]
[332559854,1721293952397,-356.0,0.000331,2]
[332559855,1721293952406,-1000.0,0.000331,2]
[332559856,1721293952415,-151.0,0.00033149,7]
[332559857,1721293952424,-185.96,0.00033918,2]
[332559858,1721293952434,-2142.01146684,0.00034393,2]
[332559859,1721293952443,-150.0,0.0003558,2]
[332559860,1721293952453,-150.0,0.00035611,2]
[332559861,1721293952463,-150.0,0.00035643,2]
[332559862,1721293952472,-150.0,0.00035653,2]
[332559863,1721293952482,-150.0,0.00035666,2]
[332559864,1721293952492,-150.0,0.00035669,2]
[332559865,1721293952502,-150.0,0.00035679,2]
[332559866,1721293952511,-150.0,0.00035684,2]
[332559867,1721293952521,-150.0,0.00035693,2]
[332559868,1721293952530,-150.0,0.00035694,2]
[332559869,1721293952540,-150.0,0.00035698,2]
[332559870,1721293952550,-150.0,0.00035706,2]
[332559871,1721293952559,-150.0,0.00035718,2]
[332559872,1721293952570,-150.0,0.00035718,2]
[332559873,1721293952579,-150.0,0.00035726,2]
[332559874,1721293952589,-150.0,0.00035727,2]
[332559875,1721293952598,-150.0,0.00035729,2]
[332559876,1721293952608,-150.0,0.0003573,2]
[332559877,1721293952617,-150.0,0.00035733,2]
[332559878,1721293952626,-150.0,0.00035733,2]
[332559879,1721293952635,-150.0,0.00035738,2]
[332559880,1721293952645,-150.0,0.00035741,2]
[332559881,1721293952655,-150.0,0.00035741,2]
[332559882,1721293952664,-150.0,0.00035745,2]
[332559883,1721293952675,-150.0,0.00035748,2]
[332559884,1721293952685,-150.0,0.00035769,2]
[332559885,1721293952694,-150.0,0.00035774,2]
[332559886,1721293952704,-150.0,0.00035775,2]
[332559887,1721293952713,-150.0,0.00035779,2]
[332559888,1721293952723,-220.77,0.00035781,3]
[332559889,1721293952733,-150.0,0.00035781,2]
[332559890,1721293952742,-150.0,0.0003581,2]
[332559891,1721293952751,-150.0,0.00035814,2]
[332559892,1721293952761,-150.0,0.00035827,2]
[332559893,1721293952770,-150.0,0.0003584,2]
[332559894,1721293952779,-150.0,0.00035844,2]
[332559895,1721293952789,-150.0,0.00035852,2]
[332559896,1721293952798,-150.0,0.00035853,2]
[332559897,1721293952808,-150.0,0.00035866,2]
[332559898,1721293952817,-150.0,0.00035871,2]
[332559899,1721293952827,-150.0,0.0003588,2]
[332559900,1721293952837,-169.14083102,0.0003588,2]
[332559901,1721293952846,-150.0,0.00035881,2]
[332559902,1721293952856,-500.0,0.0003589,2]
[332559903,1721293952865,-500.0,0.0003589,2]
[332559904,1721293952874,-500.0,0.0003589,2]
[332559905,1721293952884,-500.0,0.0003589,2]
[332559906,1721293952894,-500.0,0.0003589,2]
[332559907,1721293952904,-500.0,0.0003589,14]
[332559908,1721293952914,-500.0,0.0003589,14]
[332559909,1721293952927,-500.0,0.0003589,14]
[332559910,1721293952936,-500.0,0.0003589,14]
[332559911,1721293952946,-500.0,0.0003589,14]
[332559912,1721293952955,-177.10445959,0.0003589,14]
[332559913,1721293952967,-500.0,0.0003589,14]
[332559914,1721293952976,-500.0,0.0003589,14]
[332559915,1721293952986,-337.79,0.0003589,14]
[332559916,1721293952996,-500.0,0.0003589,14]
[332559917,1721293953006,-500.0,0.0003589,14]
[332559918,1721293953015,-500.0,0.0003589,14]
[332559919,1721293953024,-500.0,0.0003589,14]
[332559920,1721293953033,-500.0,0.0003589,14]
[332559921,1721293953043,-500.0,0.0003589,14]
[332559922,1721293953053,-500.0,0.0003589,14]
[332559923,1721293953063,-500.0,0.0003589,14]
[332559924,1721293953073,-500.0,0.0003589,14]
[332559925,1721293953083,-500.0,0.0003589,14]
[332559926,1721293953093,-500.0,0.0003589,14]
[332559927,1721293953102,-500.0,0.0003589,14]
[332559928,1721293953111,-500.0,0.0003589,14]
[332559929,1721293953121,-500.0,0.0003589,14]
[332559930,1721293953130,-500.0,0.0003589,14]
[332559931,1721293953139,-500.0,0.0003589,14]
[332559932,1721293953149,-602.08,0.0003589,14]
[332559933,1721293953159,-500.0,0.0003589,14]
[332559934,1721293953168,-500.0,0.0003589,14]
[332559935,1721293953178,-500.0,0.0003589,14]
[332559936,1721293953189,-500.0,0.0003589,14]
[332559937,1721293953199,-500.0,0.0003589,14]
[332559938,1721293953229,-500.0,0.0003589,14]
[332559939,1721293953240,-500.0,0.0003589,14]
[332559940,1721293953250,-386.24561149,0.0003589,14]
[332559941,1721293953260,-500.0,0.0003589,14]
[332559942,1721293953271,-500.0,0.0003589,14]
[332559943,1721293953281,-500.0,0.0003589,14]
[332559944,1721293953291,-500.0,0.0003589,14]
[332559945,1721293953302,-500.0,0.0003589,14]
[332559946,1721293953312,-500.0,0.0003589,14]
[332559947,1721293953327,-557.72,0.0003589,14]
[332559948,1721293953339,-500.0,0.0003589,14]
[332559949,1721293953350,-151.0,0.0003589,7]
[332559950,1721293953363,-151.0,0.0003589,7]
[332559951,1721293953374,-500.0,0.0003589,14]
[332559952,1721293953384,-500.0,0.0003589,14]
[332559953,1721293953395,-500.0,0.0003589,14]
[332559954,1721293953405,-151.0,0.0003589,7]
[332559955,1721293953416,-500.0,0.0003589,14]
[332559956,1721293953427,-151.0,0.0003589,7]
[332559957,1721293953437,-500.0,0.0003589,14]
[332559958,1721293953448,-500.0,0.0003589,14]
[332559959,1721293953459,-500.0,0.0003589,14]
[332559960,1721293953470,-500.0,0.0003589,14]
[332559961,1721293953481,-500.0,0.0003589,14]
[332559962,1721293953492,-150.0,0.00035895,2]
[332559963,1721293953503,-150.0,0.00035897,2]
[332559964,1721293953514,-150.0,0.000359,2]
[332559965,1721293953524,-1252.92148855,0.00035902,2]
[332559966,1721293953535,-150.0,0.00035903,2]
[332559967,1721293953546,-150.0,0.00035906,2]
[332559968,1721293953556,-150.0,0.00035908,2]
[332559969,1721293953568,-150.0,0.00035919,2]
[332559970,1721293953579,-150.0,0.0003592,2]
[332559971,1721293953591,-150.0,0.0003592,2]
[332559972,1721293953601,-150.0,0.00035921,2]
[332559973,1721293953612,-150.0,0.00035928,2]
[332559974,1721293953623,-150.0,0.0003593,2]
[332559975,1721293953634,-150.0,0.00035934,2]
[332559976,1721293953644,-150.0,0.00035945,2]
[332559977,1721293953655,-150.0,0.00035949,2]
[332559978,1721293953667,-150.0,0.00035956,2]
[332559979,1721293953677,-150.0,0.00035958,2]
[332559980,1721293953688,-150.0,0.00035962,2]
[332559981,1721293953699,-150.0,0.00035966,2]
[332559982,1721293953710,-150.0,0.00035969,2]
[332559983,1721293953720,-150.0,0.0003599,2]
[332559984,1721293953730,-150.0,0.00035994,2]
[332559985,1721293953740,-150.0,0.00036,2]
[332559986,1721293953750,-150.0,0.00036006,2]
[332559987,1721293953760,-150.0,0.00036007,2]
[332559988,1721293953769,-150.0,0.00036015,2]
[332559989,1721293953779,-150.0,0.00036016,2]
[332559990,1721293953789,-150.0,0.00036017,2]
[332559991,1721293953799,-303.24554169,0.00036021,4]
[332559992,1721293953808,-150.0,0.00036022,2]
[332559993,1721293953818,-150.0,0.00036028,2]
[332559994,1721293953828,-150.0,0.00036033,2]
[332559995,1721293953838,-150.0,0.00036037,2]
[332559996,1721293953848,-150.0,0.00036041,2]
[332559997,1721293953858,-150.0,0.00036042,2]
[332559998,1721293953868,-150.0,0.00036047,2]
[332559999,1721293953879,-155.0,0.0003606,4]
[332560000,1721293953889,-151.0,0.0003606,7]
[332560001,1721293953899,-500.0,0.00036063,2]
[332560002,1721293953909,-500.0,0.00036063,14]
[332560003,1721293953919,-500.0,0.00036063,14]
[332560004,1721293953932,-500.0,0.00036063,14]
[332560005,1721293953943,-150.0,0.00036065,2]
[332560006,1721293953953,-150.0,0.00036072,2]
[332560007,1721293953962,-150.0,0.00036072,2]
[332560008,1721293953974,-150.0,0.00036076,2]
[332560009,1721293953985,-150.0,0.00036081,2]
[332560010,1721293953995,-150.0,0.00036086,2]
[332560011,1721293954005,-2142.01146684,0.00036086,2]
[332560012,1721293954016,-150.0,0.0003609,2]
[332560013,1721293954026,-150.0,0.00036094,2]
[332560014,1721293954036,-150.0,0.00036097,2]
[332560015,1721293954046,-150.0,0.00036098,2]
[332560016,1721293954056,-150.0,0.000361,2]
[332560017,1721293954066,-150.0,0.00036105,2]
[332560018,1721293954076,-150.0,0.00036107,2]
[332560019,1721293954086,-150.0,0.0003611,2]
[332560020,1721293954096,-150.0,0.00036112,2]
[332560021,1721293954105,-150.0,0.00036127,2]
[332560022,1721293954115,-150.0,0.00036131,2]
[332560023,1721293954125,-150.0,0.00036137,2]
[332560024,1721293954135,-150.0,0.00036138,2]
[332560025,1721293954145,-2083.33333,0.00036139,2]
[332560026,1721293954154,-150.0,0.00036142,2]
[332560027,1721293954163,-150.0,0.00036146,2]
[332560028,1721293954173,-150.0,0.00036148,2]
[332560029,1721293954183,-150.0,0.00036157,2]
[332560030,1721293954193,-500.0,0.0003616,14]
[332560031,1721293954203,-500.0,0.0003616,14]
[332560032,1721293954376,-500.0,0.0003616,14]
[332560033,1721293954387,-605.68,0.0003616,14]
[332560034,1721293954396,-155.0,0.00036165,2]
[332560035,1721293954407,-155.0,0.00036165,4]
[332560036,1721293954417,-768.63792205,0.00036165,4]
[332560037,1721293954427,-191.3878521,0.00036165,4]
[332560038,1721293954437,-150.0,0.00036165,2]
[332560039,1721293954447,-3103.3707006,0.00036167,2]
[332560040,1721293954457,-6610.6718982,0.00036167,2]
[332560041,1721293954467,-70908.05048901,0.00036167,2]
[332560042,1721293954613,-4614.36055119,0.00036167,2]
[332560043,1721293954623,-182.096941,0.00036167,7]
[332560044,1721293954633,-150.0,0.00036172,2]
[332560045,1721293954643,-222255.65354667,0.00036178,21]
[332560046,1721293954657,-706979.68267756,0.00036178,21]
[332560047,1721293954667,-902.68182316,0.00036178,2]
[332560048,1721293954677,-65.68361395,0.00036178,14]
[332560049,1721293954687,-500.0,0.00036178,14]
[332560050,1721293954697,-500.0,0.00036178,14]
[332560051,1721293954707,-500.0,0.00036178,14]
[332560052,1721293954717,-500.0,0.00036178,14]
[332560053,1721293954727,-500.0,0.00036178,14]
[332560054,1721293954737,-322.99,0.00036178,14]
[332560055,1721293954747,-500.0,0.00036178,14]
[332560056,1721293954757,-500.0,0.00036178,14]
[332560057,1721293954766,-500.0,0.00036178,14]
[332560058,1721293954776,-500.0,0.00036178,14]
[332560059,1721293954786,-500.0,0.00036178,14]
[332560060,1721293954795,-500.0,0.00036178,14]
[332560061,1721293954805,-500.0,0.00036178,14]
[332560062,1721293954814,-179.539999,0.00036178,14]
[332560063,1721293954824,-500.0,0.00036178,14]
[332560064,1721293954834,-500.0,0.00036178,14]
[332560065,1721293954843,-500.0,0.00036178,14]
[332560066,1721293954852,-500.0,0.00036178,14]
[332560067,1721293954861,-500.0,0.00036178,14]
[332560068,1721293954871,-500.0,0.00036178,14]
[332560069,1721293954880,-500.0,0.00036178,14]
[332560070,1721293954890,-500.0,0.00036178,14]
[332560071,1721293954899,-500.0,0.00036178,14]
[332560072,1721293954909,-394.83520495,0.00036178,14]
[332560073,1721293954918,-500.0,0.00036178,14]
[332560074,1721293954931,-500.0,0.00036178,14]
[332560075,1721293954941,-500.0,0.00036178,14]
[332560076,1721293954950,-500.0,0.00036178,14]
[332560078,1721293954961,-500.0,0.00036178,14]
[332560079,1721293954970,-500.0,0.00036178,14]
[332560080,1721293954980,-500.0,0.00036178,14]
[332560082,1721293954990,-500.0,0.00036178,14]
[332560083,1721293955001,-500.0,0.00036178,14]
[332560084,1721293955011,-500.0,0.00036178,14]
[332560086,1721293955020,-500.0,0.00036178,14]
[332560087,1721293955030,-500.0,0.00036178,14]
[332560088,1721293955039,-500.0,0.00036178,14]
[332560089,1721293955049,-500.0,0.00036178,14]
[332560090,1721293955058,-246.0,0.00036178,14]
[332560091,1721293955068,-500.0,0.00036178,14]
[332560092,1721293955077,-500.0,0.00036178,14]
[332560093,1721293955086,-500.0,0.00036178,14]
[332560094,1721293955097,-452.52,0.00036178,14]
[332560095,1721293955107,-500.0,0.00036178,14]
[332560096,1721293955117,-500.0,0.00036178,14]
[332560097,1721293955128,-500.0,0.00036178,14]
[332560098,1721293955137,-500.0,0.00036178,14]
[332560099,1721293955148,-523.2,0.00036178,14]
[332560100,1721293955158,-500.0,0.00036178,14]
[332560101,1721293955168,-500.0,0.00036178,14]
[332560102,1721293955178,-500.0,0.00036178,14]
[332560103,1721293955190,-500.0,0.00036178,14]
[332560104,1721293955200,-500.0,0.00036178,14]
[332560105,1721293955223,-383.14,0.00036178,14]
[332560106,1721293955233,-500.0,0.00036178,14]
[332560107,1721293955244,-500.0,0.00036178,14]
[332560108,1721293955255,-500.0,0.00036178,14]
[332560109,1721293955265,-500.0,0.00036178,14]
[332560110,1721293955274,-500.0,0.00036178,14]
[332560111,1721293955284,-500.0,0.00036178,14]
[332560112,1721293955293,-500.0,0.00036178,14]
[332560113,1721293955303,-500.0,0.00036178,14]
[332560114,1721293955313,-500.0,0.00036178,14]
[332560115,1721293955323,-500.0,0.00036178,14]
[332560116,1721293955332,-500.0,0.00036178,14]
[332560117,1721293955342,-500.0,0.00036178,14]
[332560118,1721293955351,-500.0,0.00036178,14]
[332560119,1721293955360,-184.47,0.00036178,14]
[332560120,1721293955370,-500.0,0.00036178,14]
[332560121,1721293955380,-500.0,0.00036178,14]
[332560122,1721293955390,-500.0,0.00036178,14]
[332560123,1721293955399,-506.8,0.00036178,14]
[332560124,1721293955409,-500.0,0.00036178,14]
[332560125,1721293955419,-500.0,0.00036178,14]
[332560126,1721293955428,-500.0,0.00036178,14]
[332560127,1721293955438,-500.0,0.00036178,14]
[332560128,1721293955448,-500.0,0.00036178,14]
[332560129,1721293955458,-581.46,0.00036178,14]
[332560130,1721293955467,-500.0,0.00036178,14]
[332560131,1721293955477,-500.0,0.00036178,14]
[332560132,1721293955487,-500.0,0.00036178,14]
[332560133,1721293955497,-500.0,0.00036178,14]
[332560134,1721293955507,-500.0,0.00036178,14]
[332560135,1721293955517,-320.11,0.00036178,14]
[332560136,1721293955527,-500.0,0.00036178,14]
[332560137,1721293955536,-500.0,0.00036178,14]
[332560138,1721293955546,-500.0,0.00036178,14]
[332560139,1721293955555,-408.86,0.00036178,14]
[332560140,1721293955565,-500.0,0.00036178,14]
[332560141,1721293955575,-500.0,0.00036178,14]
[332560142,1721293955586,-500.0,0.00036178,14]
[332560143,1721293955596,-500.0,0.00036178,14]
[332560144,1721293955606,-500.0,0.00036178,14]
[332560145,1721293955616,-500.0,0.00036178,14]
[332560146,1721293955625,-500.0,0.00036178,14]
[332560147,1721293955635,-500.0,0.00036178,14]
[332560148,1721293955645,-500.0,0.00036178,14]
[332560149,1721293955655,-459.7,0.00036178,14]
[332560150,1721293955665,-500.0,0.00036178,14]
[332560151,1721293955675,-500.0,0.00036178,14]
[332560152,1721293955685,-500.0,0.00036178,14]
[332560153,1721293955695,-427.58,0.00036178,14]
[332560154,1721293955704,-500.0,0.00036178,14]
[332560155,1721293955714,-500.0,0.00036178,14]
[332560156,1721293955723,-500.0,0.00036178,14]
[332560157,1721293955733,-500.0,0.00036178,14]
[332560158,1721293955743,-500.0,0.00036178,14]
[332560159,1721293955752,-500.0,0.00036178,14]
[332560160,1721293955761,-567.97,0.00036178,14]
[332560161,1721293955771,-500.0,0.00036178,14]
[332560162,1721293955781,-500.0,0.00036178,14]
[332560163,1721293955791,-207.49,0.00036178,14]
[332560164,1721293955801,-500.0,0.00036178,14]
[332560165,1721293955811,-500.0,0.00036178,14]
[332560166,1721293955822,-500.0,0.00036178,14]
[332560167,1721293955832,-458.89,0.00036178,14]
[332560168,1721293955842,-500.0,0.00036178,14]
[332560169,1721293955852,-500.0,0.00036178,14]
[332560170,1721293955862,-500.0,0.00036178,14]
[332560171,1721293955871,-248.48,0.00036178,14]
[332560172,1721293955882,-500.0,0.00036178,14]
[332560173,1721293955892,-500.0,0.00036178,14]
[332560174,1721293955902,-500.0,0.00036178,14]
[332560175,1721293955912,-616.12,0.00036178,14]
[332560176,1721293955921,-500.0,0.00036178,14]
[332560177,1721293955935,-500.0,0.00036178,14]
[332560178,1721293955944,-500.0,0.00036178,14]
[332560179,1721293955954,-500.0,0.00036178,14]
[332560180,1721293955964,-500.0,0.00036178,14]
[332560181,1721293955975,-500.0,0.00036178,14]
[332560182,1721293955985,-500.0,0.00036178,14]
[332560183,1721293955994,-500.0,0.00036178,14]
[332560184,1721293956004,-500.0,0.00036178,14]
[332560185,1721293956014,-500.0,0.00036178,14]
[332560186,1721293956024,-500.0,0.00036178,14]
[332560187,1721293956033,-500.0,0.00036178,14]
[332560188,1721293956042,-500.0,0.00036178,14]
[332560189,1721293956053,-500.0,0.00036178,14]
[332560190,1721293956062,-271.94984439,0.00036178,14]
[332560191,1721293956072,-500.0,0.00036178,14]
[332560192,1721293956081,-500.0,0.00036178,14]
[332560193,1721293956091,-500.0,0.00036178,14]
[332560194,1721293956100,-500.0,0.00036178,14]
[332560195,1721293956110,-354.28,0.00036178,14]
[332560196,1721293956120,-500.0,0.00036178,14]
[332560197,1721293956130,-500.0,0.00036178,14]
[332560198,1721293956139,-500.0,0.00036178,14]
[332560199,1721293956149,-500.0,0.00036178,14]
[332560200,1721293956159,-500.0,0.00036178,14]
[332560201,1721293956168,-500.0,0.00036178,14]
[332560202,1721293956178,-500.0,0.00036178,14]
[332560203,1721293956188,-500.0,0.00036178,2]
[332560204,1721293956198,-500.0,0.00036178,14]
[332560205,1721293956208,-500.0,0.00036178,14]
[332560206,1721293956218,-500.0,0.00036178,2]
[332560207,1721293956228,-500.0,0.00036178,14]
[332560208,1721293956237,-500.0,0.00036178,14]
[332560209,1721293956247,-500.0,0.00036178,2]
[332560210,1721293956256,-500.0,0.00036178,14]
[332560211,1721293956266,-500.0,0.00036178,2]
[332560212,1721293956275,-500.0,0.00036178,14]
[332560213,1721293956284,-500.0,0.00036178,2]
[332560214,1721293956294,-500.0,0.00036178,14]
[332560215,1721293956304,-500.0,0.00036178,2]
[332560216,1721293956313,-173.0,0.00036178,14]
[332560217,1721293956323,-500.0,0.00036178,2]
[332560218,1721293956332,-500.0,0.00036178,2]
[332560219,1721293956341,-500.0,0.00036178,2]
[332560220,1721293956351,-500.0,0.00036178,14]
[332560221,1721293956361,-604.1,0.00036178,2]
[332560222,1721293956371,-500.0,0.00036178,14]
[332560223,1721293956380,-500.0,0.00036178,14]
[332560224,1721293956390,-449.35,0.00036178,14]
[332560225,1721293956400,-500.0,0.00036178,14]
[332560226,1721293956410,-500.0,0.00036178,14]
[332560227,1721293956420,-500.0,0.00036178,14]
[332560228,1721293956429,-500.0,0.00036178,14]
[332560229,1721293956440,-500.0,0.00036178,14]
[332560230,1721293956573,-500.0,0.00036178,14]
[332560231,1721293956583,-500.0,0.00036178,14]
[332560232,1721293956596,-500.0,0.00036178,14]
[332560233,1721293956606,-500.0,0.00036178,14]
[332560234,1721293956617,-500.0,0.00036178,14]
[332560235,1721293956627,-500.0,0.00036178,14]
[332560236,1721293956637,-500.0,0.00036178,14]
[332560237,1721293956647,-500.0,0.00036178,14]
[332560238,1721293956658,-624.8,0.00036178,14]
[332560239,1721293956667,-500.0,0.00036178,14]
[332560240,1721293956676,-500.0,0.00036178,14]
[332560241,1721293956686,-500.0,0.00036178,14]
[332560242,1721293956696,-500.0,0.00036178,14]
[332560243,1721293956706,-500.0,0.00036178,14]
[332560244,1721293956715,-500.0,0.00036178,14]
[332560245,1721293956725,-500.0,0.00036178,14]
[332560246,1721293956735,-500.0,0.00036178,14]
[332560247,1721293956745,-500.0,0.00036178,14]
[332560248,1721293956754,-500.0,0.00036178,14]
[332560249,1721293956764,-500.0,0.00036178,14]
[332560250,1721293956773,-500.0,0.00036178,14]
[332560251,1721293956783,-500.0,0.00036178,14]
[332560252,1721293956793,-500.0,0.00036178,14]
[332560253,1721293956803,-500.0,0.00036178,14]
[332560254,1721293956812,-500.0,0.00036178,14]
[332560255,1721293956823,-183.9,0.00036178,14]
[332560256,1721293956832,-500.0,0.00036178,14]
[332560257,1721293956842,-500.0,0.00036178,14]
[332560258,1721293956851,-500.0,0.00036178,14]
[332560259,1721293956861,-500.0,0.00036178,14]
[332560260,1721293956871,-500.0,0.00036178,14]
[332560261,1721293956880,-500.0,0.00036178,14]
[332560262,1721293956889,-500.0,0.00036178,14]
[332560263,1721293956899,-500.0,0.00036178,14]
[332560264,1721293956909,-500.0,0.00036178,14]
[332560265,1721293956919,-500.0,0.00036178,14]
[332560266,1721293956935,-500.0,0.00036178,14]
[332560267,1721293956945,-523.18,0.00036178,14]
[332560268,1721293956955,-500.0,0.00036178,14]
[332560269,1721293956967,-500.0,0.00036178,14]
[332560270,1721293956977,-500.0,0.00036178,14]
[332560271,1721293956986,-500.0,0.00036178,14]
[332560272,1721293956996,-500.0,0.00036178,14]
[332560273,1721293957007,-500.0,0.00036178,14]
[332560274,1721293957017,-500.0,0.00036178,14]
[332560275,1721293957027,-500.0,0.00036178,14]
[332560276,1721293957036,-641.32,0.00036178,14]
[332560277,1721293957045,-500.0,0.00036178,14]
[332560278,1721293957055,-422.45,0.00036178,14]
[332560279,1721293957065,-500.0,0.00036178,14]
[332560280,1721293957075,-500.0,0.00036178,14]
[332560281,1721293957085,-500.0,0.00036178,14]
[332560282,1721293957095,-500.0,0.00036178,14]
[332560283,1721293957104,-500.0,0.00036178,14]
[332560284,1721293957114,-500.0,0.00036178,14]
[332560285,1721293957124,-500.0,0.00036178,14]
[332560286,1721293957133,-500.0,0.00036178,14]
[332560287,1721293957143,-500.0,0.00036178,14]
[332560288,1721293957155,-500.0,0.00036178,14]
[332560289,1721293957165,-541.13,0.00036178,14]
[332560290,1721293957175,-500.0,0.00036178,14]
[332560291,1721293957185,-500.0,0.00036178,14]
[332560292,1721293957195,-155.2,0.00036178,14]
[332560293,1721293957205,-500.0,0.00036178,14]
[332560294,1721293957214,-500.0,0.00036178,14]
[332560295,1721293957224,-500.0,0.00036178,14]
[332560296,1721293957233,-500.0,0.00036178,14]
[332560297,1721293957243,-500.0,0.00036178,14]
[332560298,1721293957252,-500.0,0.00036178,14]
[332560299,1721293957262,-500.0,0.00036178,14]
[332560300,1721293957271,-500.0,0.00036178,14]
[332560301,1721293957281,-500.0,0.00036178,14]
[332560302,1721293957291,-500.0,0.00036178,14]
[332560303,1721293957300,-500.0,0.00036178,14]
[332560304,1721293957310,-500.0,0.00036178,14]
[332560305,1721293957320,-500.0,0.00036178,14]
[332560306,1721293957329,-337.89,0.00036178,14]
[332560307,1721293957339,-500.0,0.00036178,14]
[332560308,1721293957349,-280.18,0.00036178,14]
[332560309,1721293957359,-351.33075965,0.00036178,14]
[332560310,1721293957368,-500.0,0.00036178,14]
[332560311,1721293957378,-500.0,0.00036178,14]
[332560312,1721293957388,-500.0,0.00036178,14]
[332560313,1721293957398,-500.0,0.00036178,14]
[332560314,1721293957408,-500.0,0.00036178,14]
[332560315,1721293957418,-500.0,0.00036178,14]
[332560316,1721293957427,-364.96,0.00036178,14]
[332560317,1721293957437,-500.0,0.00036178,14]
[332560318,1721293957447,-500.0,0.00036178,14]
[332560319,1721293957456,-500.0,0.00036178,14]
[332560320,1721293957465,-500.0,0.00036178,14]
[332560321,1721293957475,-500.0,0.00036178,14]
[332560322,1721293957485,-500.0,0.00036178,14]
[332560323,1721293957495,-500.0,0.00036178,14]
[332560324,1721293957505,-500.0,0.00036178,14]
[332560325,1721293957514,-500.0,0.00036178,14]
[332560326,1721293957524,-500.0,0.00036178,14]
[332560327,1721293957534,-500.0,0.00036178,14]
[332560328,1721293957543,-500.0,0.00036178,14]
[332560329,1721293957553,-500.0,0.00036178,14]
[332560330,1721293957562,-500.0,0.00036178,14]
[332560331,1721293957573,-500.0,0.00036178,14]
[332560332,1721293957582,-500.0,0.00036178,14]
[332560333,1721293957593,-500.0,0.00036178,14]
[332560334,1721293957603,-500.0,0.00036178,14]
[332560335,1721293957612,-500.0,0.00036178,14]
[332560336,1721293957622,-500.0,0.00036178,14]
[332560337,1721293957632,-500.0,0.00036178,14]
[332560338,1721293957642,-500.0,0.00036178,14]
[332560339,1721293957653,-500.0,0.00036178,14]
[332560340,1721293957663,-500.0,0.00036178,14]
[332560341,1721293957673,-500.0,0.00036178,14]
[332560342,1721293957683,-500.0,0.00036178,14]
[332560343,1721293957691,-500.0,0.00036178,14]
[332560344,1721293957702,-500.0,0.00036178,14]
[332560345,1721293957712,-500.0,0.00036178,14]
[332560346,1721293957723,-500.0,0.00036178,14]
[332560347,1721293957732,-373.98,0.00036178,14]
[332560348,1721293957743,-363.92055869,0.00036178,14]
[332560349,1721293957753,-500.0,0.00036178,14]
[332560350,1721293957765,-199.94,0.00036178,14]
[332560351,1721293957775,-500.0,0.00036178,14]
[332560352,1721293957784,-500.0,0.00036178,14]
[332560353,1721293957794,-500.0,0.00036178,14]
[332560354,1721293957803,-500.0,0.00036178,14]
[332560355,1721293957814,-500.0,0.00036178,14]
[332560356,1721293957824,-500.0,0.00036178,14]